fUSD/lending_fUSD_20240109
["ID","MTS","AMOUNT","RATE_DAILY","PERIOD"]
[310918457,1704815433142,-167.0,0.00024297,2]
[310918458,1704815433151,-509.67,0.00024347,2]
[310918459,1704815433160,-374.91,0.0002444,2]
[310918460,1704815433169,-509.67,0.00024465,2]
[310918461,1704815433178,-875.31,0.00024537,2]
[310918462,1704815433188,-1334.74,0.00024537,2]
[310918463,1704815433197,-509.67,0.00024582,2]
[310918464,1704815433206,-327.48,0.0002465,2]
[310918465,1704815433215,-250.0,0.00024658,2]
[310918466,1704815433224,-164.04521952,0.00024866,2]
[310918467,1704815433234,-158.5,0.00024922,2]
[310918468,1704815433243,-301.83191032,0.00025,2]
[310918469,1704815433252,-173.81230151,0.00025,2]
[310918470,1704815433265,-273.42953019,0.00025,2]
[310918471,1704815433274,-1016.69878254,0.00025,2]
[310918472,1704815433284,-167.05182833,0.00025,2]
[310918473,1704815433293,-200.0,0.00025,2]
[310918474,1704815433302,-532.91052247,0.00025,2]
[310918475,1704815433312,-322.11967009,0.00025,2]
[310918476,1704815433321,-695.92602528,0.00025,2]
[310918477,1704815433331,-1245.75987952,0.00025,2]
[310918478,1704815433340,-155.0,0.00025,2]
[310918479,1704815433350,-1581.25327792,0.00025,2]
[310918480,1704815433359,-155.0,0.00025,2]
[310918481,1704815433368,-373.932779,0.00025,2]
[310918482,1704815433377,-612.05,0.00025015,2]
[310918483,1704815433386,-157.28,0.000251,2]
[310918484,1704815433395,-169.69,0.00025128,2]
[310918485,1704815433404,-23890.0,0.00025383,2]
[310918486,1704815433414,-156.06,0.0002542,2]
[310918487,1704815433423,-1765.09,0.00025535,2]
[310918488,1704815433435,-374.91,0.00025662,2]
[310918489,1704815433444,-875.31,0.00025706,2]
[310918490,1704815433454,-167.0,0.00025717,2]
[310918491,1704815433463,-169.69,0.00025756,2]
[310918492,1704815433474,-450.0,0.00026,3]
[310918493,1704815433483,-150.0,0.00026079,2]
[310918494,1704815433493,-167.0,0.00026302,2]
[310918495,1704815433502,-158.5,0.00026311,2]
[310918496,1704815433511,-169.69,0.00026384,2]
[310918497,1704815433521,-1000.0,0.00026478,2]
[310918498,1704815433530,-19091.64966794,0.000267,2]
[310918499,1704815433540,-875.31,0.00026874,2]
[310918500,1704815433550,-374.91,0.00026884,2]
[310918501,1704815433563,-327.48,0.00026914,2]
[310918502,1704815433573,-161.98934211,0.00027,2]
[310918503,1704815433584,-169.69,0.00027013,2]
[310918504,1704815433593,-150.0,0.00027384,2]
[310918505,1704815433603,-854.83,0.00027397,2]
[310918506,1704815433613,-250.0,0.00027397,2]
[310918507,1704815433623,-500.0,0.00027397,2]
[310918508,1704815433632,-250.0,0.000274,2]
[310918509,1704815433642,-672.78215871,0.000275,4]
[310918510,1704815433651,-854.83,0.00027556,2]
[310918511,1704815433661,-169.69,0.00027641,2]
[310918512,1704815433671,-854.83,0.00027714,2]
[310918513,1704815433680,-612.05,0.00027794,2]
[310918514,1704815433689,-150.67,0.00027821,2]
[310918515,1704815433699,-150.67,0.00027821,2]
[310918516,1704815433708,-150.67,0.00027821,2]
[310918517,1704815433718,-212.992,0.00027822,2]
[310918518,1704815433727,-2411.0,0.00027822,2]
[310918519,1704815433736,-1301.0,0.00027822,2]
[310918520,1704815433745,-539.239,0.00027822,2]
[310918521,1704815433754,-833.0,0.00027822,2]
[310918522,1704815433764,-3026.0,0.00027822,2]
[310918523,1704815433773,-1846.0,0.00027822,2]
[310918524,1704815433783,-731.136,0.00027822,2]
[310918525,1704815433793,-1127.999,0.00027822,2]
[310918526,1704815433802,-1022.352,0.00027822,2]
[310918527,1704815433811,-612.098,0.00027822,2]
[310918528,1704815433822,-1960.39,0.00027822,2]
[310918529,1704815433832,-455.438,0.00027822,2]
[310918530,1704815433842,-238.205,0.00027822,2]
[310918531,1704815433851,-576.147,0.00027822,2]
[310918532,1704815433860,-750.0,0.00027822,2]
[310918533,1704815433870,-318.0,0.00027822,2]
[310918534,1704815433879,-2894.0,0.00027822,2]
[310918535,1704815433888,-19633.0,0.00027822,2]
[310918536,1704815433898,-41900.0,0.00027822,2]
[310918537,1704815433908,-4164.0,0.00027822,2]
[310918538,1704815433917,-2279.116,0.00027822,2]
[310918539,1704815433927,-4952.906,0.00027822,2]
[310918540,1704815433936,-5699.991,0.00027822,2]
[310918541,1704815433945,-1062.714,0.00027822,2]
[310918542,1704815433955,-167.0,0.00027839,2]
[310918543,1704815433964,-854.83,0.00027872,2]
[310918544,1704815433973,-157.28,0.00027889,2]
[310918545,1704815433983,-4466.49,0.00027945,2]
[310918546,1704815433997,-7801.56,0.00027945,2]
[310918547,1704815434007,-202.15120204,0.00028,2]
[310918548,1704815434017,-687.34310039,0.00028,2]
[310918549,1704815434026,-12274.41017462,0.00028,2]
[310918550,1704815434037,-500.0,0.00028,3]
[310918551,1704815434047,-854.83,0.0002803,2]
[310918552,1704815434057,-875.31,0.00028043,2]
[310918553,1704815434067,-374.91,0.00028106,2]
[310918554,1704815434076,-854.83,0.00028189,2]
[310918555,1704815434089,-167.0,0.00028307,2]
[310918556,1704815434099,-854.83,0.00028347,2]
[310918557,1704815434109,-1504.78,0.00028445,2]
[310918558,1704815434118,-854.83,0.00028505,2]
[310918559,1704815434128,-854.83,0.00028664,2]
[310918560,1704815434137,-854.83,0.00028822,2]
[310918561,1704815434147,-174.32,0.00028851,2]
[310918562,1704815434156,-174.053567,0.00029082,2]
[310918563,1704815434166,-1492.035167,0.00029082,2]
[310918564,1704815434175,-174.053567,0.00029082,2]
[310918565,1704815434185,-518.963625,0.00029082,2]
[310918566,1704815434195,-466.123823,0.00029082,2]
[310918567,1704815434205,-160.769849,0.00029082,2]
[310918568,1704815434214,-259.481812,0.00029082,2]
[310918569,1704815434224,-327.48,0.00029177,2]
[310918570,1704815434233,-200.0,0.0002918,3]
[310918571,1704815434243,-800.0,0.0002918,5]
[310918572,1704815434253,-374.91,0.00029328,2]
[310918573,1704815434267,-1000.0,0.0002942,2]
[310918574,1704815434280,-1492.035167,0.00029445,2]
[310918575,1704815434290,-518.963625,0.00029445,2]
[310918576,1704815434299,-466.123823,0.00029445,2]
[310918577,1704815434309,-259.481812,0.00029445,2]
[310918578,1704815434319,-1504.78,0.00029481,2]
[310918579,1704815434329,-195.58475993,0.000298,2]
[310918580,1704815434340,-1492.035167,0.00029809,2]
[310918581,1704815434349,-518.963625,0.00029809,2]
[310918582,1704815434359,-466.123823,0.00029809,2]
[310918583,1704815434369,-259.481812,0.00029809,2]
[310918584,1704815434379,-174.053567,0.00029809,2]
[310918585,1704815434388,-174.053567,0.00029809,2]
[310918586,1704815434397,-160.769849,0.00029809,2]
[310918587,1704815434407,-640.0490696,0.000299,4]
[310918588,1704815434417,-167.0,0.00029961,2]
[310918589,1704815434427,-273.45080311,0.0003,4]
[310918590,1704815434437,-155.0,0.0003,2]
[310918591,1704815434446,-18985.51868976,0.0003,4]
[310918592,1704815434456,-18492.8201241,0.0003,3]
[310918593,1704815434471,-393.94677259,0.0003,3]
[310918594,1704815434481,-839.20844362,0.0003,2]
[310918595,1704815434509,-1893.13430215,0.0003,2]
[310918596,1704815434519,-689.29232079,0.0003,2]
[310918597,1704815434529,-581.07450079,0.0003,2]
[310918598,1704815434539,-550.0,0.0003,3]
[310918599,1704815434549,-408.11854184,0.000301,4]
[310918600,1704815434558,-2436.4617288,0.00030137,2]
[310918601,1704815434570,-4380.0,0.00030137,2]
[310918602,1704815434583,-465.44955774,0.00030137,2]
[310918603,1704815434603,-2718.08871346,0.00030137,2]
[310918604,1704815434613,-153.84,0.00030137,2]
[310918605,1704815434623,-37.84927697,0.00030172,2]
[310918606,1704815434636,-1454.18589003,0.00030172,2]
[310918607,1704815434646,-176.57410997,0.00030172,2]
[310918608,1704815435297,-342.38951503,0.00030172,2]
[310918609,1704815435306,-466.123823,0.00030172,2]
[310918610,1704815435320,-259.481812,0.00030172,2]
[310918611,1704815435330,-1504.78,0.00030516,2]
[310918612,1704815435341,-300.64484997,0.00030536,2]
[310918613,1704815435354,-1191.39031703,0.00030536,2]
[310918614,1704815435363,-518.963625,0.00030536,2]
[310918615,1704815435373,-466.123823,0.00030536,2]
[310918616,1704815435383,-259.481812,0.00030536,2]
[310918617,1704815435392,-174.053567,0.00030536,2]
[310918618,1704815435401,-174.053567,0.00030536,2]
[310918619,1704815435411,-160.769849,0.00030536,2]
[310918620,1704815435422,-612.05,0.00030573,2]
[310918621,1704815435431,-157.28,0.00030678,2]
[310918622,1704815435441,-157.69,0.000308,2]
[310918623,1704815435452,-1929.0,0.00030822,2]
[310918624,1704815435462,-318.0,0.00030822,2]
[310918625,1704815435472,-224.0,0.00030822,2]
[310918626,1704815435482,-817.88,0.00031129,2]
[310918627,1704815435492,-327.48,0.00031441,2]
[310918628,1704815435502,-500.0,0.000315,2]
[310918629,1704815435512,-640.04906956,0.00031532,5]
[310918630,1704815435521,-1504.78,0.00031552,2]
[310918631,1704815435531,-300.0,0.000317,11]
[310918633,1704815435540,-153.84,0.00031703,2]
[310918635,1704815435550,-600.0,0.000318,11]
[310918637,1704815435560,-4057.79592693,0.000318,2]
[310918639,1704815435569,-1352.59864231,0.0003189,2]
[310918640,1704815435579,-272.0019446,0.000319,2]
[310918643,1704815435590,-900.0,0.000319,11]
[310918645,1704815435600,-5759.1303421,0.00031987,2]
[310918648,1704815435622,-415.17513302,0.00031987,2]
[310918650,1704815435634,-575.17710851,0.00031987,2]
[310918652,1704815435647,-1282.02818207,0.00031987,2]
[310918654,1704815435660,-19020.4620805,0.00031987,2]
[310918656,1704815435670,-150.0,0.00031996,2]
[310918658,1704815435679,-150.0,0.00031996,2]
[310918660,1704815435689,-150.0,0.00031996,2]
[310918663,1704815435699,-150.0,0.00031996,2]
[310918665,1704815435709,-217.17335148,0.00031997,4]
[310918667,1704815435719,-193969.28671335,0.00031997,4]
[310918670,1704815435739,-150.67,0.00027821,2]
[310918672,1704815435748,-199.33,0.00031997,4]
[310918742,1704815438298,-164.04521952,0.00026831,2]
[310918744,1704815438308,-150.67,0.00027821,2]
[310918746,1704815438318,-610.77352403,0.00031997,4]
[310918757,1704815438411,-11556.33587587,0.00031997,4]
[310918762,1704815438479,-13067.90918983,0.00031997,4]
[310918764,1704815438492,-500.0,0.00031997,4]
[310918766,1704815438512,-1417.18237203,0.00031997,4]
[310918767,1704815438548,-5692.9448565,0.00031997,4]
[310918768,1704815438560,-5617.3999545,0.00031997,4]
[310918769,1704815438572,-508.17443757,0.00031997,4]
[310918770,1704815438609,-12544.01908252,0.00031997,4]
[310918771,1704815438621,-2142.64260616,0.00031997,4]
[310918772,1704815438742,-2014.04029348,0.00031997,4]
[310918773,1704815438753,-196.0,0.00031998,5]
[310918774,1704815438762,-10686.71823856,0.00031998,4]
[310918776,1704815438800,-4728.48394017,0.00031998,4]
[310918778,1704815438812,-6620.73748803,0.00031998,4]
[310918781,1704815438836,-32385.54950498,0.00031998,4]
[310918784,1704815438846,-156.83285728,0.00031998,4]
[310918786,1704815438857,-1000.0,0.00031998,2]
[310918787,1704815438866,-1000.0,0.00031998,2]
[310918788,1704815438876,-626691.48314131,0.00031999,2]
[310918790,1704815438885,-340816.08720775,0.00032,2]
[310918792,1704815438894,-155.3221194,0.00032,2]
[310918794,1704815438903,-492.26087777,0.00032,4]
[310918796,1704815438913,-1802.95544033,0.00032,4]
[310918798,1704815438923,-167.732088,0.00032,4]
[310918800,1704815438933,-600.0,0.00032,3]
[310918802,1704815438942,-3000.0,0.00032,2]
[310918804,1704815438951,-408.65297903,0.00032,2]
[310918806,1704815438960,-408.65297903,0.00032,2]
[310918808,1704815438969,-408.65297903,0.00032,2]
[310918810,1704815438979,-408.65297903,0.00032,2]
[310918812,1704815438988,-408.65297903,0.00032,2]
[310918814,1704815438997,-408.65297903,0.00032,2]
[310918817,1704815439007,-408.65297903,0.00032,2]
[310918819,1704815439016,-408.65297903,0.00032,2]
[310918821,1704815439025,-408.65297903,0.00032,2]
[310918823,1704815439034,-408.65297903,0.00032,2]
[310918825,1704815439045,-408.65297903,0.00032,2]
[310918827,1704815439055,-408.65297903,0.00032,2]
[310918829,1704815439064,-408.65297903,0.00032,2]
[310918831,1704815439073,-408.65297903,0.00032,2]
[310918833,1704815439084,-408.65297903,0.00032,2]
[310918835,1704815439093,-408.65297903,0.00032,2]
[310918837,1704815439102,-408.65297903,0.00032,2]
[310918839,1704815439112,-408.65297903,0.00032,2]
[310918841,1704815439121,-408.65297903,0.00032,2]
[310918843,1704815439130,-408.65297903,0.00032,2]
[310918845,1704815439139,-408.65297903,0.00032,2]
[310918847,1704815439148,-408.65297903,0.00032,2]
[310918849,1704815439158,-408.65297903,0.00032,2]
[310918851,1704815439167,-408.65297903,0.00032,2]
[310918853,1704815439177,-408.65297903,0.00032,2]
[310918855,1704815439186,-408.65297903,0.00032,2]
[310918857,1704815439195,-408.65297903,0.00032,2]
[310918859,1704815439205,-408.65297903,0.00032,2]
[310918861,1704815439214,-408.65297903,0.00032,2]
[310918863,1704815439223,-408.65297903,0.00032,2]
[310918865,1704815439232,-408.65297903,0.00032,2]
[310918867,1704815439242,-408.65297903,0.00032,2]
[310918869,1704815439251,-408.65297903,0.00032,2]
[310918871,1704815439261,-408.65297903,0.00032,2]
[310918873,1704815439273,-408.65297903,0.00032,2]
[310918875,1704815439283,-408.65297903,0.00032,2]
[310918877,1704815439292,-408.65297903,0.00032,2]
[310918879,1704815439302,-408.65297903,0.00032,2]
[310918881,1704815439311,-408.65297903,0.00032,2]
[310918883,1704815439321,-408.65297903,0.00032,2]
[310918885,1704815439330,-408.65297903,0.00032,2]
[310918887,1704815439341,-408.65297903,0.00032,2]
[310918890,1704815439350,-408.65297903,0.00032,2]
[310918892,1704815439360,-408.65297903,0.00032,2]
[310918893,1704815439369,-408.65297903,0.00032,2]
[310918896,1704815439379,-408.65297903,0.00032,2]
[310918897,1704815439388,-408.65297903,0.00032,2]
[310918900,1704815439400,-408.65297903,0.00032,2]
[310918902,1704815439410,-408.65297903,0.00032,2]
[310918904,1704815439419,-408.65297903,0.00032,2]
[310918906,1704815439428,-408.65297903,0.00032,2]
[310918908,1704815439438,-408.65297903,0.00032,2]
[310918910,1704815439447,-408.65297903,0.00032,2]
[310918912,1704815439457,-408.65297903,0.00032,2]
[310918914,1704815439467,-408.65297903,0.00032,2]
[310918916,1704815439477,-408.65297903,0.00032,2]
[310918918,1704815439486,-408.65297903,0.00032,2]
[310918920,1704815439495,-408.65297903,0.00032,2]
[310918922,1704815439504,-408.65297903,0.00032,2]
[310918924,1704815439514,-408.65297903,0.00032,2]
[310918926,1704815439523,-408.65297903,0.00032,2]
[310918928,1704815439533,-408.65297903,0.00032,2]
[310918930,1704815439542,-408.65297903,0.00032,2]
[310918932,1704815439551,-408.65297903,0.00032,2]
[310918934,1704815439561,-408.65297903,0.00032,2]
[310918936,1704815439570,-408.65297903,0.00032,2]
[310918938,1704815439579,-408.65297903,0.00032,2]
[310918939,1704815439591,-408.65297903,0.00032,2]
[310918941,1704815439601,-408.65297903,0.00032,2]
[310918943,1704815439609,-408.65297903,0.00032,2]
[310918944,1704815439619,-408.65297903,0.00032,2]
[310918946,1704815439628,-408.65297903,0.00032,2]
[310918948,1704815439638,-408.65297903,0.00032,2]
[310918950,1704815439647,-408.65297903,0.00032,2]
[310918951,1704815439657,-408.65297903,0.00032,2]
[310918953,1704815439666,-3000.0,0.0003201,2]
[310918954,1704815439675,-3000.0,0.0003202,2]
[310918956,1704815439685,-3000.0,0.0003203,2]
[310918958,1704815439694,-3000.0,0.0003204,2]
[310918960,1704815439704,-3000.0,0.0003205,2]
[310918961,1704815439713,-3000.0,0.0003206,2]
[310918963,1704815439723,-3000.0,0.0003207,2]
[310918965,1704815439732,-3000.0,0.0003208,2]
[310918967,1704815439742,-3000.0,0.0003209,2]
[310918969,1704815439751,-5964.074208,0.000321,2]
[310918970,1704815439760,-272.00194376,0.0003229,2]
[310918972,1704815439769,-1000.0,0.00032362,2]
[310918974,1704815439777,-155.0,0.000325,2]
[310918976,1704815439786,-1504.78,0.00032588,2]
[310918977,1704815439796,-272.00194376,0.00032679,2]
[310918979,1704815439806,-188.20064195,0.00032777,2]
[310918981,1704815439815,-284.96111305,0.00032876,2]
[310918983,1704815439824,-1822.61,0.00032877,2]
[310918985,1704815439833,-224.41,0.00032877,15]
[310918986,1704815439842,-51884.53,0.00032877,2]
[310918988,1704815439851,-151.37,0.00032877,2]
[310918990,1704815439860,-12366.3,0.00032877,2]
[310918991,1704815439870,-36948.11,0.00032877,2]
[310918993,1704815439879,-1982.35549316,0.00033,2]
[310918994,1704815439888,-1500.0,0.00033,7]
[310918996,1704815439897,-272.00194376,0.00033069,2]
[310918998,1704815439907,-640.04906956,0.00033164,6]
[310918999,1704815439917,-153.84,0.00033268,2]
[310919000,1704815439926,-612.05,0.00033353,2]
[310919001,1704815439936,-174.32,0.00033417,2]
[310919002,1704815439945,-272.00194376,0.00033458,2]
[310919003,1704815439954,-157.28,0.00033466,2]
[310919004,1704815439964,-3968.11,0.000335,2]
[310919005,1704815439973,-3968.11,0.000335,2]
[310919006,1704815439982,-3968.11,0.000335,2]
[310919007,1704815439991,-3968.11,0.000335,2]
[310919008,1704815440000,-3968.11,0.000335,2]
[310919009,1704815440010,-3968.11,0.000335,2]
[310919010,1704815440019,-3968.11,0.000335,2]
[310919011,1704815440028,-3968.11,0.000335,2]
[310919012,1704815440037,-3968.11,0.000335,2]
[310919013,1704815440046,-3968.11,0.000335,2]
[310919014,1704815440055,-3968.11,0.000335,2]
[310919015,1704815440065,-3968.11,0.000335,2]
[310919016,1704815440074,-3968.11,0.000335,2]
[310919017,1704815440083,-3968.11,0.000335,2]
[310919018,1704815440093,-3968.11,0.000335,2]
[310919019,1704815440101,-3968.11,0.000335,2]
[310919020,1704815440110,-3968.11,0.000335,2]
[310919021,1704815440119,-3968.11,0.000335,2]
[310919022,1704815440128,-3968.11,0.000335,2]
[310919023,1704815440137,-3968.11,0.000335,2]
[310919024,1704815440146,-1504.78,0.00033624,2]
[310919025,1704815440155,-343.0,0.000337,2]
[310919026,1704815440164,-1000.0,0.000337,2]
[310919027,1704815440173,-327.48,0.00033705,2]
[310919028,1704815440183,-272.00194376,0.00033848,2]
[310919029,1704815440192,-155.0,0.0003387,2]
[310919030,1704815440201,-1000.0,0.00034,4]
[310919031,1704815440210,-1500.0,0.00034,7]
[310919032,1704815440220,-153.68,0.00034,2]
[310919033,1704815440229,-153.68,0.00034,2]
[310919034,1704815440238,-153.68,0.00034,2]
[310919035,1704815440247,-153.68,0.00034,2]
[310919036,1704815440257,-200.0,0.00034107,2]
[310919037,1704815440267,-272.00194376,0.00034237,2]
[310919038,1704815440277,-157.69,0.000343,2]
[310919039,1704815440286,-157.69,0.000343,2]
[310919040,1704815440295,-509.6,0.000344,7]
[310919041,1704815440305,-2115.552647,0.0003452,2]
[310919042,1704815440314,-750.659418,0.0003452,2]
[310919043,1704815440323,-7404.434265,0.0003452,2]
[310919044,1704815440332,-600.527535,0.0003452,2]
[310919045,1704815440344,-12693.315882,0.0003452,2]
[310919046,1704815440357,-1801.582604,0.0003452,2]
[310919047,1704815440367,-1276.75,0.00034521,2]
[310919048,1704815440375,-272.00194376,0.00034627,2]
[310919049,1704815440384,-180.0,0.00034658,2]
[310919050,1704815440393,-500.0,0.00034794,2]
[310919051,1704815440403,-500.0,0.00034794,2]
[310919052,1704815440413,-3173.328971,0.00034794,2]
[310919053,1704815440423,-1125.989128,0.00034794,2]
[310919054,1704815440433,-11106.651397,0.00034794,2]
[310919055,1704815440442,-900.791302,0.00034794,2]
[310919056,1704815440452,-19039.973824,0.00034794,2]
[310919057,1704815440462,-2702.373907,0.00034794,2]
[310919058,1704815440471,-894.0,0.00034795,4]
[310919059,1704815440481,-640.04906956,0.00034796,7]
[310919060,1704815440491,-55555.0,0.00034821,3]
[310919061,1704815440502,-153.84,0.00034834,2]
[310919062,1704815440511,-2880.35816293,0.000349,2]
[310919063,1704815440521,-2880.35816279,0.000349,2]
[310919064,1704815440530,-4231.105294,0.00034931,2]
[310919065,1704815440539,-1501.318837,0.00034931,2]
[310919066,1704815440549,-14808.86853,0.00034931,2]
[310919067,1704815440559,-1201.05507,0.00034931,2]
[310919068,1704815440568,-25386.631765,0.00034931,2]
[310919069,1704815440578,-3603.165209,0.00034931,2]
[310919070,1704815440589,-201.80902973,0.00034968,2]
[310919071,1704815440598,-150.57997199,0.00034969,2]
[310919072,1704815440607,-153.68,0.0003499,2]
[310919073,1704815440617,-100000.0,0.00035,2]
[310919074,1704815440626,-622.68825896,0.00035,5]
[310919075,1704815440636,-2500.0,0.00035,2]
[310919076,1704815440645,-16401.42035786,0.00035,2]
[310919077,1704815440654,-235.52485845,0.00035,2]
[310919078,1704815440906,-155.0,0.00035,2]
[310919079,1704815440916,-3000.0,0.00035,2]
[310919080,1704815440926,-416.76342153,0.00035,2]
[310919081,1704815440935,-1500.0,0.00035,7]
[310919082,1704815440944,-250.15502171,0.00035,2]
[310919083,1704815440953,-871.75277867,0.00035,2]
[310919084,1704815440962,-3000.0,0.0003501,2]
[310919085,1704815440971,-272.00194376,0.00035016,2]
[310919086,1704815440980,-3000.0,0.0003502,2]
[310919087,1704815440989,-3000.0,0.0003503,2]
[310919088,1704815440999,-5187.060013,0.0003504,2]
[310919089,1704815441009,-2880.35816279,0.00035056,2]
[310919090,1704815441018,-5288.881618,0.00035068,2]
[310919091,1704815441027,-1876.648546,0.00035068,2]
[310919092,1704815441037,-18511.085662,0.00035068,2]
[310919093,1704815441046,-1501.318837,0.00035068,2]
[310919094,1704815441055,-31733.289707,0.00035068,2]
[310919095,1704815441064,-4503.956511,0.00035068,2]
[310919096,1704815441074,-155.0,0.0003524,2]
[310919097,1704815441083,-1000.0,0.00035303,2]
[310919098,1704815441093,-7404.434265,0.00035342,2]
[310919099,1704815441102,-2627.307965,0.00035342,2]
[310919100,1704815441111,-25915.519928,0.00035342,2]
[310919101,1704815441120,-2101.846372,0.00035342,2]
[310919102,1704815441130,-44426.60559,0.00035342,2]
[310919103,1704815441138,-6305.539116,0.00035342,2]
[310919104,1704815441148,-272.00194376,0.00035406,2]
[310919105,1704815441158,-153.12444963,0.00035588,2]
[310919106,1704815441167,-750.0,0.000356,2]
[310919107,1704815441177,-200.0,0.00035616,2]
[310919108,1704815441186,-368.21780958,0.00035653,7]
[310919109,1704815441195,-152.64,0.000357,7]
[310919110,1704815441205,-2381.19525407,0.00035712,7]
[310919111,1704815441214,-5349.094838,0.00035712,8]
[310919112,1704815441224,-275.89849136,0.00035712,7]
[310919113,1704815441233,-1060.17769609,0.00035712,7]
[310919114,1704815441242,-272.00194376,0.00035795,2]
[310919115,1704815441251,-1276.75,0.00035798,2]
[310919116,1704815441260,-1200.0,0.000359,13]
[310919117,1704815441273,-327.48,0.00035969,2]
[310919118,1704815441282,-80194.27043919,0.00036,2]
[310919119,1704815441297,-19805.72956081,0.00036,2]
[310919120,1704815441306,-21109.46054969,0.00036,4]
[310919121,1704815441318,-2247.76443721,0.00036,4]
[310919122,1704815441327,-691.66852181,0.00036,2]
[310919123,1704815441338,-601.2319956,0.00036089,2]
[310919124,1704815441347,-601.23199559,0.00036089,2]
[310919125,1704815441357,-601.23199559,0.00036089,2]
[310919126,1704815441367,-601.23199559,0.00036089,2]
[310919127,1704815441377,-601.23199559,0.00036089,2]
[310919128,1704815441386,-601.23199559,0.00036089,2]
[310919129,1704815441397,-1142.6140747,0.00036135,8]
[310919130,1704815441407,-272.00194376,0.00036185,2]
[310919131,1704815441416,-187.856562,0.00036274,2]
[310919132,1704815441426,-3968.11,0.000363,3]
[310919133,1704815441435,-3968.11,0.000363,3]
[310919134,1704815441445,-3968.11,0.000363,3]
[310919135,1704815441454,-3968.11,0.000363,3]
[310919136,1704815441464,-3968.11,0.000363,3]
[310919137,1704815441473,-3968.11,0.000363,3]
[310919138,1704815441483,-3968.11,0.000363,3]
[310919139,1704815441493,-3968.11,0.000363,3]
[310919140,1704815441502,-3968.11,0.000363,3]
[310919141,1704815441513,-3968.11,0.000363,3]
[310919142,1704815441522,-2130.59913856,0.000363,3]
[310919144,1704815442422,-154.0,0.0003,2]
[310919145,1704815442433,-530.0,0.00031681,2]
[310919146,1704815442442,-408.65297903,0.00032,2]
[310919147,1704815442451,-242.89015175,0.00032,2]
[310919175,1704815443424,-150.0,0.00027822,2]
[310919176,1704815443435,-164.04521952,0.00028797,2]
[310919177,1704815443444,-150.0,0.00030822,2]
[310919178,1704815443454,-2710.34041551,0.0003168,4]
[310919179,1704815443463,-165.76282728,0.00032,2]
[310919180,1704815443473,-408.65297903,0.00032,2]
[310919181,1704815443483,-154.0,0.00032,2]
[310919182,1704815443492,-408.65297903,0.00032,2]
[310919183,1704815443502,-408.65297903,0.00032,2]
[310919184,1704815443511,-408.65297903,0.00032,2]
[310919185,1704815443520,-408.65297903,0.00032,2]
[310919186,1704815443530,-408.65297903,0.00032,2]
[310919187,1704815443541,-408.65297903,0.00032,2]
[310919188,1704815443550,-408.65297903,0.00032,2]
[310919189,1704815443560,-408.65297903,0.00032,2]
[310919190,1704815443569,-408.65297903,0.00032,2]
[310919191,1704815443578,-408.65297903,0.00032,2]
[310919192,1704815443589,-408.65297903,0.00032,2]
[310919193,1704815443598,-408.65297903,0.00032,2]
[310919194,1704815443607,-408.65297903,0.00032,2]
[310919195,1704815443618,-408.65297903,0.00032,2]
[310919196,1704815443627,-408.65297903,0.00032,2]
[310919197,1704815443638,-408.65297903,0.00032,2]
[310919198,1704815443647,-408.65297903,0.00032,2]
[310919199,1704815443656,-408.65297903,0.00032,2]
[310919200,1704815443666,-408.65297903,0.00032,2]
[310919201,1704815443675,-408.65297903,0.00032,2]